[Event "17th Delhi GM Open 2019-B"]
[Site "Delhi"]
[Date "2019.01.09"]
[Round "2"]
[White "Wankhade Sanskruti"]
[Black "Aadit Bhatia"]
[Result "1/2-1/2"]
[ECO "D07"]
[WhiteElo "1582"]
[BlackElo "1846"]
[Annotator "NA"]
[PlyCount "61"]
[EventDate "2019.01.09"]
[EventType "swiss"]
[EventCountry "IND"]
[SourceTitle "playchess.com"]
[Source "ChessBase"]
[SourceQuality "1"]
[TimeControl "3600+30"]

1. d4 {[%emt 0:00:00]} d5 {[%emt 0:00:00]} 2. c4 {[%emt 0:00:00]} Nc6 {[%emt 0:00:00]} 3. Nc3 {[%emt 0:00:00]} Nf6 {[%emt 0:00:00]} 4. e3 {[%emt 0:00:00]} dxc4 {[%emt 0:00:00]} 5. Bxc4 {[%emt 0:00:00]} e5 {[%emt 0:00:00]} 6. d5 {[%emt 0:00:00]} Nb8 {[%emt 0:00:00]} 7. Nf3 {[%emt 0:00:00]} Bd6 {[%emt 0:00:00]} 8. O-O {[%emt 0:00:00]} O-O {[%emt 0:00:00]} (8... e4 $5 {[%cal Re4f3]} 9. Ng5 Bf5 $11) 9. h3 {[%emt 0:00:00]} (9. e4 $14) 9... Nbd7 {[%emt 0:00:00]} (9... e4 $11 10. Nd4 Nbd7) 10. b3 {[%emt 0:00:00]} a6 {[%emt 0:00:00]} 11. a4 {[%emt 0:00:00]} Qe7 {[%emt 0:00:00]} (11... e4 $15 12. Nd4 Nb6) 12. Nd2 {[%emt 0:00:00] [#]} e4 $17 {[%emt 0:00:00]} 13. Qc2 {[%emt 0:03:38]} Re8 {[%emt 0:00:00]} 14. Rb1 {[%emt 0:04:04]} Nf8 {[%emt 0:00:00]} 15. Ne2 {[%emt 0:02:04]} Ng6 {[%emt 0:00:00]} 16. Bb2 {[%emt 0:02:13]} Nh5 {[%emt 0:02:54]} 17. Bd4 {[%emt 0:05:33]} Bd7 {[%emt 0:08:46]} 18. Nc3 {[%emt 0:02:26]} Bxh3 {[%emt 0:04:24]} 19. Ncxe4 {[%emt 0:02:58]} f5 {[%emt 0:05:23]} 20. Ng3 {[%emt 0:02:30]} Nxg3 {[%emt 0:00:11]} 21. fxg3 {[%emt 0:00:09]} Bg4 {[%emt 0:00:03]} 22. Nf3 {[%emt 0:03:13]} Kh8 {[%emt 0:01:13]} 23. Qf2 {[%emt 0:03:03]} c5 {[%emt 0:01:49]} 24. dxc6 {[%emt 0:00:23]} bxc6 {[%emt 0:00:04]} 25. Rbe1 {[%emt 0:02:27]} h6 {[%emt 0:03:33]} 26. Nh2 {[%emt 0:01:47]} Qg5 {[%emt 0:03:39]} 27. Nxg4 {[%emt 0:01:00]} Qxg4 {[%emt 0:00:39]} 28. Qxf5 {[%emt 0:00:48]} Qxg3 {[%emt 0:00:27]} 29. Bxg7+ {[%emt 0:00:53]} Kh7 {[%emt 0:05:32]} 30. Qh5 {[%emt 0:01:24]} Qg5 {[%emt 0:03:12]} 31. Qxg5 {[%emt 0:02:42]} 1/2-1/2